bitfinex-derivatives/quotes_BTCF0:USTF0_20240903
["timestamp","ask_amount","ask_price","bid_price","bid_amount"]
[1725340663171,0.2104,59280.0,59279.0,0.438274]
[1725340663471,0.2104,59280.0,59279.0,0.077474]
[1725340663670,0.2104,59280.0,59279.0,0.438274]
[1725340665173,0.2104,59280.0,59279.0,0.50549209]
[1725340667071,0.2104,59280.0,59279.0,0.438274]
[1725340667873,0.2104,59280.0,59279.0,0.077474]
[1725340668172,0.2104,59280.0,59279.0,0.438274]
[1725340669376,0.2104,59280.0,59279.0,0.48880597]
[1725340673175,0.2104,59280.0,59279.0,0.12800597]
[1725340673765,0.1204,59280.0,59279.0,0.12800597]
[1725340674065,0.1204,59280.0,59279.0,0.077474]
[1725340674066,0.2104,59280.0,59279.0,0.077474]
[1725340678270,0.2104,59280.0,59279.0,0.438274]
[1725340681980,0.2104,59280.0,59279.0,0.50549209]
[1725340682681,0.2104,59280.0,59279.0,0.438274]
[1725340688086,0.2104,59280.0,59279.0,0.077474]
[1725340688289,0.2104,59280.0,59279.0,0.438274]
[1725340688489,0.2104,59280.0,59279.0,0.077474]
[1725340688691,0.2104,59280.0,59279.0,0.438274]
[1725340694294,0.1204,59280.0,59279.0,0.438274]
[1725340694495,0.2104,59280.0,59279.0,0.438274]
[1725340696191,0.2104,59280.0,59279.0,0.077474]
[1725340696390,0.2104,59280.0,59279.0,0.438274]
[1725340704192,0.2104,59280.0,59279.0,0.50567742]
[1725340704393,0.2104,59280.0,59279.0,0.438274]
[1725340705399,0.2104,59280.0,59279.0,0.50569044]
[1725340706200,0.2104,59280.0,59279.0,0.14489044]
[1725340706500,0.2104,59280.0,59279.0,0.01]
[1725340706501,0.277873,59280.0,59279.0,0.01]
[1725340708098,1.67728,59280.0,59275.0,0.06741644]
[1725340708400,1.67728,59280.0,59274.0,0.00025307]
[1725340708401,0.0904,59276.0,59274.0,0.00025307]
[1725340708697,0.0601,59275.0,59274.0,0.00025307]
[1725340708902,0.1701,59275.0,59274.0,0.00025307]
[1725340709086,0.1571,59275.0,59274.0,0.00025307]
[1725340709894,0.292056,59275.0,59274.0,0.00025307]
[1725340710196,0.230578,59275.0,59274.0,0.00125307]
[1725340713394,0.23414932,59275.0,59274.0,0.00125307]
[1725340726523,0.067486,59268.0,59264.0,0.06741644]
[1725340726722,0.0904,59265.0,59263.0,0.0504476]
[1725340726922,0.0904,59265.0,59261.0,0.0504476]
[1725340726923,0.067493,59262.0,59261.0,0.0504476]
[1725340727120,0.067493,59262.0,59257.0,0.3608]
[1725340727121,0.067497,59259.0,59257.0,0.3608]
[1725340727430,0.2,59259.0,59257.0,0.3608]
[1725340727617,0.11,59259.0,59257.0,0.3608]
[1725340727816,0.09,59258.0,59257.0,0.3608]
[1725340728024,0.21,59258.0,59257.0,0.3608]
[1725340728530,0.21,59258.0,59257.0,0.3658]
[1725340728531,0.277498,59258.0,59257.0,0.3658]
[1725340730324,0.278498,59258.0,59257.0,0.3658]
[1725340736617,0.23628225,59258.0,59257.0,0.3658]
[1725340739124,0.23628225,59258.0,59257.0,0.005]
[1725340739340,0.30118225,59258.0,59257.0,0.005]
[1725340743057,0.23628225,59258.0,59257.0,0.005]
[1725340752644,0.188498,59258.0,59257.0,0.41628185]
[1725340752935,0.278498,59258.0,59257.0,0.3658]
[1725340753438,0.278498,59258.0,59257.0,0.005]
[1725340757236,0.278498,59258.0,59257.0,0.3658]
[1725340757437,0.278498,59258.0,59257.0,0.005]
[1725340757738,0.278498,59258.0,59257.0,0.43321769]
[1725340757930,0.278498,59258.0,59257.0,0.3658]
[1725340763142,0.278498,59258.0,59257.0,0.57841274]
[1725340763938,0.278498,59258.0,59257.0,0.64591174]
[1725340764338,0.278498,59258.0,59257.0,0.433299]
[1725340765441,0.211,59258.0,59257.0,0.433299]
[1725340765649,0.121,59258.0,59257.0,0.433299]
[1725340766440,0.121,59258.0,59257.0,0.499899]
[1725340766845,0.121,59258.0,59257.0,1.696179]
[1725340767238,0.121,59258.0,59257.0,1.606179]
[1725340769636,0.121,59258.0,59257.0,1.096179]
[1725340770149,0.121,59258.0,59257.0,1.006179]
[1725340772347,0.121,59258.0,59257.0,1.09020161]
[1725340772544,0.121,59258.0,59257.0,1.006179]
[1725340773052,0.121,59258.0,59257.0,0.499899]
[1725340781256,0.121,59258.0,59257.0,0.433299]
[1725340781754,0.211,59258.0,59257.0,0.433299]
[1725340784763,0.211,59258.0,59257.0,0.072499]
[1725340784957,0.2741,59258.0,59257.0,0.072499]
[1725340785156,0.341598,59258.0,59257.0,0.072499]
[1725340786365,0.341598,59258.0,59257.0,0.005]
[1725340788764,0.34508206,59258.0,59257.0,0.005]
[1725340791569,0.34508206,59258.0,59257.0,0.05556492]
[1725340794471,0.34508206,59258.0,59257.0,0.005]
[1725340803670,0.25508206,59258.0,59257.0,0.005]
[1725340804072,0.34508206,59258.0,59257.0,0.005]
[1725340806178,0.34508206,59258.0,59257.0,0.07239235]
[1725340806384,0.34508206,59258.0,59257.0,0.005]
[1725340806586,0.34508206,59258.0,59257.0,0.07239235]
[1725340806975,0.34508206,59258.0,59257.0,0.005]
[1725340807476,0.34508206,59258.0,59257.0,0.07239235]
[1725340808181,0.34508206,59258.0,59257.0,0.005]
[1725340808387,0.34508206,59258.0,59257.0,0.07239235]
[1725340811092,0.50628,59257.0,59253.0,0.05059558]
[1725340811290,0.50628,59257.0,59249.0,0.06745906]
[1725340811291,0.067509,59248.0,59246.0,0.06745906]
[1725340811497,0.067512,59245.0,59244.0,0.06745906]
[1725340811692,0.277912,59245.0,59244.0,0.06745906]
[1725340811997,0.277512,59245.0,59244.0,0.06745906]
[1725340812187,0.067514,59244.0,59242.0,0.06745906]
[1725340812491,0.177514,59244.0,59242.0,0.06745906]
[1725340812700,0.177914,59244.0,59242.0,0.06745906]
[1725340813291,0.177914,59244.0,59243.0,0.518315]
[1725340813292,0.1104,59244.0,59243.0,0.518315]
[1725340813496,0.1104,59244.0,59243.0,0.649215]
[1725340814199,0.1104,59244.0,59243.0,0.559215]
[1725340815098,0.1114,59244.0,59243.0,0.559215]
[1725340818503,0.1114,59244.0,59243.0,0.428315]
[1725340821913,0.178914,59244.0,59243.0,0.428315]
[1725340824506,0.178914,59244.0,59243.0,0.47888372]
[1725340824707,0.178914,59244.0,59243.0,0.11808372]
[1725340825313,0.178914,59244.0,59243.0,0.067515]
[1725340826910,0.067515,59243.0,59242.0,0.41136872]
[1725340827110,0.247915,59243.0,59242.0,0.41136872]
[1725340827708,0.247915,59243.0,59242.0,0.05056872]
[1725340827913,0.247915,59243.0,59242.0,0.41136872]
[1725340828308,0.248915,59243.0,59242.0,0.41136872]
[1725340830023,0.248915,59243.0,59242.0,0.05056872]
[1725340830223,0.248915,59243.0,59242.0,0.41136872]
[1725340831718,0.248915,59243.0,59242.0,0.3608]
[1725340832114,0.248915,59243.0,59242.0,0.41136872]
[1725340832523,0.0014,59243.0,59242.0,0.518316]
[1725340836329,0.1214,59243.0,59242.0,0.52194903]
[1725340839122,0.1214,59243.0,59242.0,0.16114903]
[1725340839426,0.1214,59243.0,59242.0,0.73488378]
[1725340840223,0.1214,59243.0,59242.0,0.65056445]
[1725340846539,0.0004,59254.0,59249.0,0.067508]
[1725340846830,0.0043,59254.0,59253.0,0.067503]
[1725340847132,0.0004,59254.0,59253.0,0.37076028]
[1725340847338,0.0004,59254.0,59253.0,0.28649972]
[1725340847724,0.0039,59260.0,59259.0,0.067496]
[1725340847927,0.00361707,59261.0,59260.0,0.067495]
[1725340848225,0.00361707,59261.0,59260.0,0.11803097]
[1725340848226,0.02,59261.0,59260.0,0.11803097]
[1725340849120,0.021,59261.0,59260.0,0.11803097]
[1725340849632,0.021,59261.0,59260.0,0.067495]
[1725340850934,0.028,59261.0,59260.0,0.067495]
[1725340855930,0.118,59261.0,59260.0,0.067495]
[1725340860041,0.067495,59260.0,59259.0,0.3612]
[1725340860239,0.187495,59260.0,59259.0,0.3612]
[1725340860436,0.187895,59260.0,59259.0,0.3612]
[1725340861236,0.194895,59260.0,59259.0,0.3612]
[1725340864636,0.0074,59260.0,59259.0,0.428696]
[1725340865136,0.0074,59260.0,59259.0,0.47923197]
[1725340865345,0.0074,59260.0,59259.0,0.428696]
[1725340866741,0.0074,59260.0,59259.0,0.934936]
[1725340867650,0.00025307,59265.0,59264.0,0.067491]
[1725340867848,0.00357164,59272.0,59264.0,0.067491]
[1725340867849,0.0039,59273.0,59272.0,0.067482]
[1725340868049,0.0657,59279.0,59278.0,0.067475]
[1725340868246,0.0657,59279.0,59278.0,0.157875]
[1725340868247,0.1057,59279.0,59278.0,0.157875]
[1725340868555,0.1057,59279.0,59278.0,0.157475]
[1725340869541,0.1197,59279.0,59278.0,0.157475]
[1725340870876,0.1337,59279.0,59278.0,0.157475]
[1725340871859,0.1337,59279.0,59278.0,0.067475]
[1725340879063,0.067475,59278.0,59277.0,0.3608]
[1725340879262,0.187875,59278.0,59277.0,0.3608]
[1725340880251,0.067476,59277.0,59275.0,0.428278]
[1725340880460,0.0004,59276.0,59275.0,0.428278]
[1725340880664,0.1204,59276.0,59275.0,0.428278]
[1725340882157,0.1204,59276.0,59275.0,0.518278]
[1725340882353,0.1314,59276.0,59275.0,0.518278]
[1725340883862,0.1454,59276.0,59275.0,0.518278]
[1725340886761,0.1454,59276.0,59275.0,0.157478]
[1725340886962,0.1454,59276.0,59275.0,0.518278]
[1725340887964,0.1454,59276.0,59275.0,0.52188306]
[1725340892669,0.0254,59276.0,59275.0,1.62800306]
[1725340893876,0.0254,59276.0,59275.0,1.69548106]
[1725340899583,0.0254,59276.0,59275.0,1.09548106]
[1725340899783,0.0254,59276.0,59275.0,1.1628901]
[1725340900476,0.0254,59276.0,59275.0,1.09548106]
[1725340901972,0.0254,59276.0,59275.0,1.5236901]
[1725340903073,0.0254,59276.0,59275.0,1.0175701]
[1725340903471,0.0114,59276.0,59275.0,0.95016106]
[1725340903676,0.0124,59276.0,59275.0,2.06128106]
[1725340903879,0.0024,59276.0,59275.0,2.06628106]
[1725340905577,0.0024,59276.0,59275.0,2.06828106]
[1725340905876,0.0014,59276.0,59275.0,2.06328106]
[1725340906075,0.0024,59276.0,59275.0,2.06928106]
[1725340906786,0.0004,59276.0,59275.0,2.05628106]
[1725340907082,0.0024,59276.0,59275.0,1.34768106]
[1725340907290,0.0024,59276.0,59275.0,2.06928106]
[1725340907671,0.0014,59276.0,59275.0,2.06328106]
[1725340907876,0.0024,59276.0,59275.0,2.06928106]
[1725340908476,0.0024,59276.0,59275.0,2.07628106]
[1725340909185,0.0024,59276.0,59275.0,2.07028106]
[1725340909186,0.0014,59276.0,59275.0,2.07028106]
[1725340909488,0.0024,59276.0,59275.0,2.08128106]
[1725340910599,0.0014,59276.0,59275.0,2.07028106]
[1725340910887,0.0014,59276.0,59275.0,2.07928106]
[1725340913788,0.0014,59276.0,59275.0,0.97316106]
[1725340918885,0.0014,59276.0,59275.0,0.25156106]
[1725340919281,0.0014,59276.0,59275.0,0.90568306]
[1725340925095,0.0014,59276.0,59275.0,0.18408306]
[1725340925289,0.0014,59276.0,59275.0,0.90568306]
[1725340927801,0.0014,59276.0,59275.0,0.74820506]
[1725340928003,0.308277,59276.0,59275.0,0.74820506]
[1725340929697,0.308277,59276.0,59275.0,0.38740506]
[1725340930494,0.2408,59276.0,59275.0,0.45488306]
[1725340930901,0.1308,59276.0,59275.0,0.45488306]
[1725340931200,0.2408,59276.0,59275.0,0.54488306]
[1725340931506,0.2408,59276.0,59275.0,0.47740506]
[1725340935197,0.308277,59276.0,59275.0,0.38740506]
[1725340935403,0.308277,59276.0,59275.0,0.45476204]
[1725340936105,0.308277,59276.0,59275.0,0.38740506]
[1725340937802,0.308277,59276.0,59275.0,0.3838]
[1725340938102,1.414397,59276.0,59275.0,0.45115128]
[1725340938305,1.414397,59276.0,59275.0,0.3838]
[1725340938603,1.41793968,59276.0,59275.0,0.023]
[1725340939213,1.41793968,59276.0,59275.0,0.07352527]
[1725340939508,1.41793968,59276.0,59275.0,0.023]
[1725340939801,1.41793968,59276.0,59275.0,0.07352527]
[1725340940496,1.41793968,59276.0,59275.0,0.023]
[1725340951422,1.50793968,59276.0,59275.0,0.023]
[1725340951811,1.50793968,59276.0,59275.0,0.07352527]
[1725340954116,1.50793968,59276.0,59275.0,0.023]
[1725340954313,1.50793968,59276.0,59275.0,0.07352527]
[1725340954518,0.90793968,59276.0,59275.0,0.07352527]
[1725340954821,1.93621668,59276.0,59275.0,0.023]
[1725340967432,0.18241968,59276.0,59275.0,0.023]
[1725340967726,0.1114,59276.0,59275.0,0.090478]
[1725340968024,0.1114,59276.0,59275.0,0.15782928]
[1725340968231,0.1114,59276.0,59275.0,0.22482928]
[1725340969023,0.1114,59276.0,59275.0,0.22835872]
[1725340969627,0.1114,59276.0,59275.0,0.22482928]
[1725340970934,0.1114,59276.0,59275.0,0.157478]
[1725340972130,0.0014,59276.0,59275.0,0.157478]
[1725340981939,0.0014,59276.0,59275.0,0.20804205]
[1725340985340,0.0014,59276.0,59275.0,0.157478]
[1725340988945,0.0014,59276.0,59275.0,0.090478]
[1725340991456,0.0014,59276.0,59275.0,0.081478]
[1725340991647,1.665797,59276.0,59275.0,0.008]
[1725340991854,1.733274,59276.0,59275.0,0.021]
[1725340994650,1.73673466,59276.0,59275.0,0.021]
[1725341002653,1.13673466,59276.0,59275.0,0.021]
[1725341003856,0.29233766,59276.0,59275.0,0.021]
[1725341004356,0.20233766,59276.0,59275.0,0.021]
[1725341007654,0.29233766,59276.0,59275.0,0.021]
[1725341011750,0.13486066,59276.0,59275.0,0.088478]
[1725341011959,0.1314,59276.0,59275.0,0.178478]
[1725341015067,0.0014,59276.0,59275.0,0.178478]
[1725341016174,0.0014,59276.0,59275.0,0.237178]
[1725341020764,0.0014,59276.0,59275.0,0.743298]
[1725341020980,0.0014,59276.0,59275.0,1.343298]
[1725341021677,0.0014,59276.0,59275.0,1.410776]
[1725341021979,0.00415307,59284.0,59275.0,1.410776]
[1725341021980,0.00415307,59284.0,59283.0,0.067469]
[1725341022174,0.00025307,59284.0,59283.0,0.518269]
[1725341022368,0.00025307,59284.0,59283.0,0.518669]
[1725341024077,0.00025307,59284.0,59283.0,0.522669]
[1725341028877,0.00025307,59284.0,59283.0,0.52625244]
[1725341030469,0.00025307,59284.0,59283.0,0.16545244]
[1725341030671,0.00025307,59284.0,59283.0,0.52625244]
[1725341031267,0.00025307,59284.0,59283.0,0.16545244]
[1725341031466,0.00025307,59284.0,59283.0,0.52625244]
[1725341032070,0.00025307,59284.0,59283.0,0.16545244]
[1725341032777,0.00025307,59284.0,59283.0,0.52625244]
[1725341037167,0.00025307,59284.0,59283.0,0.16545244]
[1725341037369,0.00025307,59284.0,59283.0,0.52625244]
[1725341037875,0.071359,59292.0,59291.0,0.06746]
[1725341037876,0.0039,59292.0,59291.0,0.06746]
[1725341038077,0.071351,59300.0,59295.0,0.067455]
[1725341038374,0.071351,59300.0,59295.0,0.157455]
[1725341038375,0.067451,59300.0,59295.0,0.157455]
[1725341038580,0.099,59296.0,59295.0,0.067455]
[1725341040272,0.101,59296.0,59295.0,0.068455]
[1725341040870,0.11,59296.0,59295.0,0.069455]
[1725341041070,0.11,59296.0,59295.0,0.430255]
[1725341041674,0.11,59296.0,59295.0,0.520255]
[1725341042072,0.11,59296.0,59295.0,0.430255]
[1725341042382,0.11,59296.0,59295.0,0.520255]
[1725341049093,0.11,59296.0,59295.0,0.069455]
[1725341049094,0.2,59296.0,59295.0,0.069455]
[1725341049889,0.267454,59296.0,59295.0,0.069455]
[1725341052387,0.177454,59296.0,59295.0,0.069455]
[1725341052793,0.177454,59296.0,59295.0,0.002]
[1725341053088,0.18107123,59296.0,59295.0,0.002]
[1725341054685,0.24852523,59296.0,59295.0,0.002]
[1725341059695,0.75448523,59296.0,59295.0,0.002]
[1725341061996,1.35448523,59296.0,59295.0,0.002]
[1725341066501,0.75448523,59296.0,59295.0,0.002]
[1725341066705,1.35448523,59296.0,59295.0,0.002]
[1725341068697,1.35448523,59296.0,59291.0,0.0004]
[1725341068698,0.202377,59292.0,59291.0,0.0004]
[1725341068892,0.763577,59292.0,59291.0,0.0004]
[1725341069096,1.869537,59292.0,59291.0,0.0004]
[1725341069905,1.871537,59292.0,59291.0,0.0004]
[1725341070098,1.880537,59292.0,59291.0,0.0014]
[1725341070599,1.880537,59292.0,59291.0,1e-06]
[1725341070795,0.067467,59285.0,59284.0,0.0039]
[1725341070992,0.067475,59278.0,59277.0,0.0039]
[1725341071197,0.067481,59273.0,59270.0,0.15604206]
[1725341071402,0.0004,59272.0,59270.0,0.15214206]
[1725341071698,0.07,59272.0,59270.0,0.15214206]
[1725341071906,0.07,59272.0,59270.0,0.06214206]
[1725341072100,0.069,59272.0,59270.0,0.06214206]
[1725341072405,0.136482,59272.0,59271.0,0.41126951]
[1725341072703,0.137482,59272.0,59271.0,0.41126951]
[1725341073296,0.141482,59272.0,59271.0,0.3608]
[1725341074110,0.231482,59272.0,59271.0,0.3608]
[1725341076600,0.141482,59272.0,59271.0,0.3608]
[1725341076802,0.074,59272.0,59271.0,0.428283]
[1725341077104,0.074,59272.0,59271.0,0.47875251]
[1725341077105,0.005,59272.0,59271.0,0.47875251]
[1725341077306,0.005,59272.0,59271.0,0.548483]
[1725341079604,0.001,59272.0,59271.0,0.552483]
[1725341079805,0.00025307,59277.0,59276.0,0.067477]
[1725341080000,0.00025307,59277.0,59276.0,0.518677]
[1725341082810,0.00025307,59277.0,59276.0,0.519677]
[1725341083002,0.00325307,59277.0,59276.0,0.519677]
[1725341085413,0.00325307,59277.0,59276.0,0.52323053]
[1725341086314,0.00325307,59277.0,59276.0,0.57366029]
[1725341087207,0.00325307,59277.0,59276.0,0.52323053]
[1725341090309,0.00325307,59277.0,59276.0,0.43323053]
[1725341090613,0.00325307,59277.0,59276.0,0.52323053]
[1725341094117,0.00325307,59277.0,59276.0,0.16243053]
[1725341094420,0.00325307,59277.0,59276.0,0.52323053]
[1725341097417,0.00325307,59277.0,59276.0,0.429677]
[1725341097619,0.00325307,59277.0,59276.0,0.519677]
[1725341097805,0.00325307,59277.0,59276.0,0.429677]
[1725341097806,0.07072907,59277.0,59276.0,0.429677]
[1725341098010,0.28072907,59277.0,59276.0,0.0014]
[1725341098407,0.34820507,59277.0,59276.0,0.0014]
[1725341102121,1.45432507,59277.0,59276.0,0.0014]
[1725341107520,0.85432507,59277.0,59276.0,0.0014]
[1725341109421,0.25820507,59277.0,59276.0,0.0014]
[1725341109636,0.19072907,59277.0,59276.0,0.0014]
[1725341119854,0.25820507,59277.0,59276.0,0.0014]
[1725341122337,0.067484,59270.0,59269.0,0.0039]
[1725341122635,0.067487,59267.0,59266.0,0.00025307]
[1725341122840,0.197887,59267.0,59266.0,0.00025307]
[1725341123238,0.287887,59267.0,59266.0,0.00025307]
[1725341124441,0.283887,59267.0,59266.0,0.01225307]
[1725341125242,0.284887,59267.0,59266.0,0.02025307]
[1725341125646,0.194887,59267.0,59266.0,0.02025307]
[1725341126237,0.1324,59267.0,59266.0,0.17774107]
[1725341126437,0.0024,59267.0,59266.0,0.17774107]
[1725341128330,0.0024,59267.0,59266.0,0.18123441]
[1725341130742,0.0024,59267.0,59266.0,0.54203441]
[1725341134746,0.0024,59267.0,59266.0,0.18123441]
[1725341135052,0.0024,59267.0,59266.0,0.54203441]
[1725341136845,0.0024,59267.0,59266.0,1.64823441]
[1725341137153,0.0039,59275.0,59274.0,0.067479]
[1725341137345,0.00025307,59277.0,59274.0,0.067479]
[1725341137346,0.00025307,59277.0,59276.0,0.067477]
[1725341137551,0.09025307,59277.0,59276.0,0.067877]
[1725341137745,0.09025307,59277.0,59276.0,0.067477]
[1725341139151,0.18025307,59277.0,59276.0,0.067477]
[1725341139343,0.18025307,59277.0,59276.0,0.11798247]
[1725341139542,0.18025307,59277.0,59276.0,0.067477]
[1725341140043,0.18025307,59277.0,59276.0,0.068477]
[1725341140239,0.18325307,59277.0,59276.0,0.429277]
[1725341142253,0.18325307,59277.0,59276.0,0.068477]
[1725341148052,0.24185307,59277.0,59276.0,0.068477]
[1725341151061,0.30932907,59277.0,59276.0,0.068477]
[1725341152663,0.30932907,59277.0,59276.0,0.001]
[1725341159770,0.37680507,59277.0,59276.0,0.001]
[1725341169966,0.44428107,59277.0,59276.0,0.001]
[1725341170165,1.55040107,59277.0,59276.0,0.001]
[1725341170469,0.95040107,59277.0,59276.0,0.001]
[1725341170666,1.55040107,59277.0,59276.0,0.001]
[1725341171094,0.202434,59275.0,59274.0,0.0004]
[1725341171375,0.422834,59275.0,59274.0,0.0004]
[1725341171584,1.528954,59275.0,59274.0,0.0004]
[1725341172174,1.529954,59275.0,59274.0,0.0034]
[1725341173874,2.251554,59275.0,59274.0,0.0034]
[1725341174177,2.251554,59275.0,59274.0,1e-06]
[1725341174481,0.134972,59268.0,59267.0,0.0039]
[1725341174684,0.067487,59267.0,59260.0,0.0039]
[1725341174972,0.422474,59267.0,59260.0,0.0039]
[1725341175178,0.422074,59267.0,59260.0,0.0039]
[1725341175780,0.417074,59267.0,59260.0,0.0039]
[1725341176282,0.067494,59261.0,59260.0,0.0039]
[1725341176578,0.5712,59261.0,59253.0,0.0039]
[1725341176784,0.0904,59254.0,59252.0,0.05050547]
[1725341177077,0.0004,59253.0,59251.0,0.05050547]
[1725341177270,0.0904,59254.0,59252.0,0.05050547]
[1725341177474,0.0784,59254.0,59251.0,0.05050547]
[1725341177674,0.0004,59252.0,59250.0,0.45667993]
[1725341177869,0.0004,59251.0,59250.0,0.45435993]
[1725341178180,0.001,59253.0,59252.0,0.013]
[1725341178577,0.001,59253.0,59251.0,0.013]
[1725341178781,0.0004,59252.0,59251.0,0.013]
[1725341179274,0.002,59251.0,59250.0,0.37735993]
[1725341179484,0.0024,59251.0,59250.0,0.37727993]
[1725341179787,0.0924,59251.0,59250.0,0.37727993]
[1725341180367,0.2124,59251.0,59250.0,0.37727993]
[1725341181279,0.2104,59251.0,59250.0,0.36427993]
[1725341181584,0.2054,59251.0,59250.0,0.36427993]
[1725341181977,0.2064,59251.0,59250.0,0.36927993]
[1725341182375,0.2074,59251.0,59250.0,0.36927993]
[1725341185989,0.122,59251.0,59250.0,0.52678693]
[1725341186294,0.07978067,59251.0,59250.0,0.52678693]
[1725341187477,0.002,59251.0,59250.0,1.99390693]
[1725341188683,0.002,59251.0,59250.0,2.2067044]
[1725341189077,0.002,59251.0,59250.0,2.12249921]
[1725341189881,0.002,59251.0,59250.0,2.12257921]
[1725341191181,0.071395,59261.0,59257.0,0.067499]
[1725341191182,0.0039,59261.0,59257.0,0.067499]
[1725341191385,0.067492,59263.0,59257.0,0.58594689]
[1725341191581,0.067492,59263.0,59257.0,0.518699]
[1725341192080,0.067492,59263.0,59257.0,1.024979]
[1725341192480,0.067492,59263.0,59257.0,0.664179]
[1725341192672,0.067492,59263.0,59257.0,1.024979]
[1725341193577,0.00125307,59258.0,59257.0,1.025979]
[1725341193778,0.00225307,59258.0,59257.0,1.625979]
[1725341193974,0.0039,59266.0,59265.0,0.06749]
[1725341194283,0.11,59266.0,59265.0,0.06789]
[1725341195185,0.111,59266.0,59265.0,0.06989]
[1725341195689,0.112,59266.0,59265.0,0.06989]
[1725341196588,0.202,59266.0,59265.0,0.06989]
[1725341197877,0.202,59266.0,59265.0,0.07350845]
[1725341198078,0.202,59266.0,59265.0,0.06989]
[1725341200689,0.202,59266.0,59265.0,0.0024]
[1725341200690,0.269488,59266.0,59265.0,0.0024]
[1725341201980,0.335976,59266.0,59265.0,0.0024]
[1725341202193,0.336976,59266.0,59265.0,0.0044]
[1725341203092,0.335976,59266.0,59265.0,0.0044]
[1725341204984,1.802976,59266.0,59265.0,0.0044]
[1725341207589,1.202976,59266.0,59265.0,0.0044]
[1725341211991,0.696776,59266.0,59265.0,0.0044]
[1725341220106,0.629288,59266.0,59265.0,0.0044]
[1725341227607,0.268488,59266.0,59265.0,0.0044]
[1725341227808,0.629288,59266.0,59265.0,0.0044]
[1725341228521,0.268488,59266.0,59265.0,0.0044]
[1725341228708,0.629288,59266.0,59265.0,0.0044]
[1725341230119,0.696776,59266.0,59265.0,0.0044]
[1725341230322,0.067494,59261.0,59258.0,0.0039]
[1725341230627,0.4512,59259.0,59255.0,0.0039]
[1725341230921,0.067506,59251.0,59249.0,0.0039]
[1725341231124,0.09,59249.0,59247.0,0.43410587]
[1725341231310,0.0004,59248.0,59247.0,0.42831]
[1725341231526,0.1,59248.0,59247.0,0.42831]
[1725341232612,0.101,59248.0,59247.0,0.42831]
[1725341232812,0.102,59248.0,59247.0,0.42831]
[1725341233616,0.102,59248.0,59247.0,0.06751]
[1725341237812,0.10559058,59248.0,59247.0,0.06751]
[1725341239421,0.10559058,59248.0,59247.0,0.06735]
[1725341239916,0.102,59248.0,59247.0,0.66371]
[1725341240222,0.05977794,59248.0,59247.0,1.34776986]
[1725341240523,0.05977794,59248.0,59247.0,0.79231743]
[1725341241218,0.05977794,59248.0,59247.0,0.87654064]
[1725341242024,0.05977794,59248.0,59247.0,0.37018064]
[1725341242416,0.05977794,59248.0,59247.0,0.28595743]
[1725341243023,0.05977794,59248.0,59247.0,0.37018009]
[1725341243218,0.05977794,59248.0,59247.0,0.28018009]
[1725341244818,0.14977794,59248.0,59247.0,0.28018009]
[1725341245018,0.14977794,59248.0,59247.0,0.06735]
[1725341245524,0.067511,59247.0,59245.0,0.00350416]
[1725341245824,0.067511,59247.0,59244.0,0.3608]
[1725341245825,0.067912,59246.0,59244.0,0.3608]
[1725341246021,0.0904,59245.0,59244.0,0.3608]
[1725341246321,0.277912,59245.0,59244.0,0.3608]
[1725341248430,0.278912,59245.0,59244.0,0.3608]
[1725341249025,0.279912,59245.0,59244.0,0.3608]
[1725341249725,0.279912,59245.0,59244.0,0.36437387]
[1725341254834,0.279912,59245.0,59244.0,0.36433387]
[1725341262254,0.1224,59245.0,59244.0,0.51607053]
[1725341262443,0.1224,59245.0,59244.0,0.56045914]
[1725341264945,0.1224,59245.0,59244.0,0.43184787]
[1725341265148,0.1224,59245.0,59244.0,0.56045444]
[1725341268154,0.1224,59245.0,59244.0,0.43184787]
[1725341272359,0.189912,59245.0,59244.0,0.428274]
[1725341273566,0.189912,59245.0,59244.0,0.36076]
[1725341273858,0.19337368,59245.0,59244.0,0.36076]
[1725341274048,0.189912,59245.0,59244.0,0.36076]
[1725341278748,0.189912,59245.0,59244.0,0.42825162]
[1725341279350,0.279912,59245.0,59244.0,0.36076]
[1725341279855,0.279912,59245.0,59244.0,0.42825024]
[1725341280456,0.189912,59245.0,59244.0,0.42825024]
[1725341280661,0.189912,59245.0,59244.0,0.36076]
[1725341285161,0.279912,59245.0,59244.0,0.36076]
[1725341287460,0.279912,59245.0,59243.0,0.069795]
[1725341287654,0.279912,59245.0,59243.0,0.428315]
[1725341287855,0.0004,59244.0,59243.0,0.428315]
[1725341288048,0.2104,59244.0,59243.0,0.428315]
[1725341289172,0.2114,59244.0,59243.0,0.428315]
[1725341289466,0.1224,59244.0,59243.0,0.428315]
[1725341302266,0.1224,59244.0,59243.0,0.518315]
[1725341302460,0.1224,59244.0,59243.0,0.574915]
[1725341302675,0.0024,59244.0,59243.0,0.574915]
[1725341305271,0.0024,59244.0,59243.0,0.70351976]
[1725341308979,0.0024,59244.0,59243.0,0.70352027]
[1725341312375,0.0024,59244.0,59243.0,0.574915]
[1725341314673,0.1224,59244.0,59243.0,0.428315]
[1725341315581,0.1224,59244.0,59243.0,0.49579845]
[1725341316479,0.1224,59244.0,59243.0,0.428315]
[1725341318375,0.12588474,59244.0,59243.0,0.428315]
[1725341320778,0.19339874,59244.0,59243.0,0.3608]
[1725341324182,0.19339874,59244.0,59242.0,0.00025307]
[1725341324384,0.19339874,59244.0,59243.0,0.3608]
[1725341324580,0.19299874,59244.0,59243.0,0.3608]
[1725341325590,0.28299874,59244.0,59243.0,0.3608]
[1725341327183,0.067515,59243.0,59242.0,0.00025307]
[1725341327384,0.187915,59243.0,59242.0,0.36105307]
[1725341328589,0.188915,59243.0,59242.0,0.36105307]
[1725341329388,0.189915,59243.0,59242.0,0.36105307]
[1725341329891,0.189915,59243.0,59242.0,0.42856907]
[1725341330887,0.1224,59243.0,59242.0,0.42856907]